bitfinex-derivatives/quotes_ETHF0:USTF0_20250104
["timestamp","ask_amount","ask_price","bid_price","bid_amount"]
[1736003542167,0.27486,3639.1,3639.0,0.69136]
[1736003542679,0.27485,3639.2,3639.1,0.27485]
[1736003543178,2.15393814,3639.5,3639.0,0.4165]
[1736003543378,0.27486,3639.1,3639.0,0.4165]
[1736003543777,0.27486,3639.1,3639.0,0.69136]
[1736003544076,0.27485,3639.3,3639.2,0.27485]
[1736003544281,0.27485,3639.2,3639.1,0.27485]
[1736003545272,0.27484,3639.3,3639.2,0.27484]
[1736003545472,2.15393814,3639.5,3639.4,0.27483]
[1736003545676,2.15393814,3639.5,3639.4,2.48495785]
[1736003546782,0.27483,3639.5,3639.4,2.48495785]
[1736003548077,0.27483,3639.5,3639.4,0.27483]
[1736003549781,0.4161,3639.7,3639.1,5.41792785]
[1736003549974,3.2078,3639.8,3639.5,0.27482]
[1736003549975,0.27482,3639.6,3639.5,0.27482]
[1736003550174,0.27482,3639.6,3639.5,0.71022]
[1736003550374,0.27482,3639.6,3639.5,0.4354]
[1736003550577,0.27482,3639.6,3639.5,0.71023]
[1736003551481,0.27482,3639.6,3639.5,0.27483]
[1736003551871,0.27483,3639.5,3639.4,0.27483]
[1736003552078,0.68763,3639.5,3639.4,0.27483]
[1736003552881,0.4128,3639.5,3639.4,0.27483]
[1736003553984,0.68763,3639.5,3639.4,0.27483]
[1736003554184,0.4128,3639.5,3639.4,0.27483]
[1736003554889,0.68763,3639.5,3639.4,0.27483]
[1736003555586,0.27482,3639.6,3639.1,5.41792785]
[1736003555789,0.27482,3639.6,3639.5,0.27483]
[1736003556288,0.27482,3639.6,3639.5,2.13128298]
[1736003557182,0.27482,3639.7,3639.6,0.27481]
[1736003557388,0.27482,3639.7,3639.6,1.27156298]
[1736003557589,3.48261,3639.8,3639.7,0.27481]
[1736003560292,3.2078,3639.8,3639.7,0.27481]
[1736003560796,2.15393814,3640.0,3639.7,0.99675298]
[1736003561094,2.15393814,3640.0,3639.9,5.47610596]
[1736003562288,2.15393814,3640.0,3639.9,5.69016218]
[1736003562893,0.27477,3640.3,3640.2,0.27477]
[1736003563987,0.27476,3640.4,3640.0,0.27479]
[1736003564294,0.27475,3640.6,3640.2,2.20756218]
[1736003564994,0.27475,3640.6,3640.4,0.27476]
[1736003565194,2.15393814,3640.8,3640.4,0.27476]
[1736003565394,2.15393814,3640.8,3640.3,0.71416]
[1736003565594,0.27476,3640.5,3640.3,0.71416]
[1736003565892,0.27476,3640.4,3640.3,0.71416]
[1736003566087,0.27476,3640.4,3640.3,0.4394]
[1736003566895,0.27476,3640.4,3640.3,0.71417]
[1736003568592,0.27476,3640.4,3640.3,0.4394]
[1736003570691,0.27476,3640.4,3640.3,0.71417]
[1736003570897,0.27476,3640.4,3640.3,0.4394]
[1736003574687,0.27476,3640.4,3640.3,0.71417]
[1736003574893,0.27476,3640.4,3640.3,0.4394]
[1736003576399,0.27658263,3640.4,3640.3,0.4394]
[1736003580991,0.00182263,3640.4,3640.1,0.8581]
[1736003581196,0.27477,3640.2,3640.1,1.13288]
[1736003581499,0.27477,3640.2,3640.1,0.8581]
[1736003582795,0.27477,3640.2,3640.1,1.13288]
[1736003584296,0.27477,3640.2,3640.1,2.12924009]
[1736003588905,0.27478,3640.1,3640.0,0.4231]
[1736003589094,0.27478,3640.1,3640.0,1.41946009]
[1736003589296,0.27478,3640.1,3640.0,0.99636009]
[1736003590300,0.00182263,3640.4,3640.0,0.99636009]
[1736003590500,0.00182263,3640.4,3640.2,0.99636009]
[1736003590706,0.27477,3640.3,3640.2,0.99636009]
[1736003591600,0.27477,3640.3,3640.2,1.27113009]
[1736003594105,2.15576077,3640.4,3640.2,0.99636009]
[1736003594504,0.27477,3640.3,3640.2,1.27113009]
[1736003596902,2.15576077,3640.4,3640.3,0.27477]
[1736003597105,2.15576077,3640.4,3640.3,1.13407]
[1736003598711,0.00182263,3640.4,3640.3,1.13407]
[1736003603123,2.15576077,3640.4,3640.3,1.13407]
[1736003604621,2.15576077,3640.4,3640.3,5.44025369]
[1736003605223,2.15576077,3640.4,3640.3,5.84455369]
[1736003606425,0.00182263,3640.4,3640.3,5.84455369]
[1736003608026,3.23248719,3640.4,3640.3,8.01298721]
[1736003612633,2.16200593,3640.4,3640.3,1.53837]
[1736003614233,2.16200593,3640.4,3640.3,4.74617]
[1736003614924,0.00182263,3640.4,3640.3,4.74617]
[1736003615324,0.2741833,3640.5,3640.4,0.27476]
[1736003615532,4.30755275,3640.8,3640.7,0.27474]
[1736003615533,3.86972119,3640.8,3640.7,0.27474]
[1736003615735,3.86972119,3640.8,3640.7,6.53726018]
[1736003616331,6.46200535,3641.5,3640.7,6.26252018]
[1736003616640,5.80584094,3641.7,3641.6,0.27467]
[1736003616939,6.08050094,3641.7,3641.6,0.27467]
[1736003617238,5.38444094,3641.7,3641.6,1.27103009]
[1736003617733,5.65910094,3641.7,3641.6,0.99636009]
[1736003617928,0.27466,3641.7,3641.6,0.99636009]
[1736003618833,0.4272,3641.8,3641.6,0.99636009]
[1736003619033,0.27466,3641.7,3641.6,0.99636009]
[1736003621936,0.99636009,3641.7,3641.2,4.31874711]
[1736003622138,0.27469,3641.3,3641.2,4.31874711]
[1736003622532,0.2747,3641.2,3641.1,4.31874711]
[1736003622736,1.71886009,3641.2,3641.1,4.31874711]
[1736003622937,1.71886009,3641.2,3641.1,2.97394711]
[1736003623540,1.44416009,3641.2,3640.8,0.99636009]
[1736003623738,0.27472,3640.9,3640.8,0.99636009]
[1736003624242,0.27472,3640.9,3640.7,0.71213]
[1736003625143,0.4478,3641.2,3640.7,0.71213]
[1736003625144,0.27473,3640.8,3640.7,0.71213]
[1736003627630,0.4478,3641.2,3640.9,0.27472]
[1736003627838,0.27472,3640.9,3640.8,0.27472]
[1736003628731,0.4478,3641.2,3640.7,0.4374]
[1736003629139,0.27472,3640.9,3640.8,0.27472]
[1736003629443,0.27471,3641.1,3640.7,0.4374]
[1736003629642,0.27471,3641.1,3640.9,0.27471]
[1736003630038,0.27471,3641.1,3641.0,0.27471]
[1736003630242,0.4478,3641.2,3640.7,0.4374]
[1736003630441,0.27472,3641.0,3640.9,0.27472]
[1736003631540,0.27472,3640.9,3640.8,0.27472]
[1736003633643,0.4478,3641.2,3640.7,0.4374]
[1736003633839,0.27472,3641.0,3640.9,0.27472]
[1736003634346,0.4478,3641.2,3640.7,0.4374]
[1736003634641,0.2747,3641.2,3641.0,0.27471]
[1736003634849,3.2078,3641.4,3640.8,2.20722813]
[1736003635036,3.48249,3641.4,3641.3,0.27469]
[1736003635942,3.8945934,3641.4,3641.3,0.27469]
[1736003636144,3.6199034,3641.4,3641.3,0.27469]
[1736003637346,3.2078,3641.4,3641.3,0.27469]
[1736003639148,0.27468,3641.5,3641.4,0.27468]
[1736003640253,0.27468,3641.4,3641.3,0.27469]
[1736003640444,0.27468,3641.4,3641.2,1.2619]
[1736003640445,0.27468,3641.5,3641.4,0.27468]
[1736003640648,0.4392,3641.8,3641.2,1.2619]
[1736003640848,0.27469,3641.4,3641.3,0.27469]
[1736003641244,0.27467,3641.6,3641.5,0.27467]
[1736003643155,0.4267,3641.8,3641.2,1.2619]
[1736003643450,0.27467,3641.6,3641.2,1.2619]
[1736003643651,0.27467,3641.6,3641.5,0.27468]
[1736003645448,0.27467,3641.6,3641.3,0.27469]
[1736003645650,0.27467,3641.6,3641.5,0.27468]
[1736003646355,0.27467,3641.6,3641.5,1.27039055]
[1736003646554,0.4267,3641.8,3641.5,0.99571055]
[1736003646759,0.27465,3641.9,3641.8,0.27465]
[1736003647060,0.4343,3642.2,3641.9,0.27464]
[1736003647061,0.27464,3642.0,3641.9,0.27464]
[1736003647251,0.27464,3642.0,3641.9,1.27035055]
[1736003647758,0.27464,3642.0,3641.9,0.99571055]
[1736003648057,5.3069327,3642.1,3641.5,3.2078]
[1736003648356,0.27466,3641.7,3641.6,0.27466]
[1736003648653,0.27466,3641.8,3641.7,0.27466]
[1736003648853,0.99571055,3642.1,3641.7,1.13916]
[1736003649156,0.27465,3641.9,3641.8,0.99571055]
[1736003649753,0.27465,3641.9,3641.8,1.27036055]
[1736003650160,0.99571055,3642.1,3641.8,1.27036055]
[1736003650461,1.27035055,3642.1,3641.9,0.27464]
[1736003650659,0.27464,3642.0,3641.9,0.27464]
[1736003651561,0.27464,3642.1,3642.0,0.27464]
[1736003652252,0.70893,3642.2,3642.1,0.27463]
[1736003652449,0.4343,3642.2,3642.0,0.99571055]
[1736003652651,0.27463,3642.2,3642.1,0.27463]
[1736003654059,4.31122215,3642.4,3642.0,0.99571055]
[1736003654262,0.27461,3642.4,3642.3,0.27462]
[1736003654752,0.6982,3642.5,3642.4,0.27461]
[1736003654959,0.4236,3642.5,3642.1,2.20543458]
[1736003655157,0.27461,3642.4,3642.3,0.27461]
[1736003655357,0.4236,3642.5,3642.1,2.20543458]
[1736003655553,0.7017,3642.6,3642.5,0.2746]
[1736003656551,7.93952215,3642.8,3642.3,3.2078]
[1736003656757,0.2746,3642.5,3642.4,1.1136]
[1736003656958,7.93952215,3642.8,3642.4,0.69821]
[1736003657264,0.2746,3642.5,3642.4,0.69821]
[1736003659063,3.6283,3642.8,3642.4,0.4236]
[1736003659265,0.2746,3642.6,3642.5,0.2746]
[1736003659465,0.27459,3642.7,3642.6,0.27459]
[1736003659763,3.6283,3642.8,3642.4,0.4236]
[1736003659964,0.27459,3642.7,3642.6,0.27459]
[1736003661663,0.27459,3642.6,3642.5,0.2746]
[1736003661865,0.27459,3642.6,3642.4,0.6982]
[1736003662860,3.2078,3642.8,3642.4,0.4236]
[1736003663062,3.2078,3642.8,3642.0,0.4154]
[1736003663260,0.27461,3642.4,3642.1,0.4448]
[1736003663461,0.27461,3642.4,3642.3,0.27462]
[1736003663869,0.27459,3642.7,3642.2,0.27462]
[1736003664162,3.2078,3642.8,3642.3,0.27461]
[1736003664163,0.27461,3642.5,3642.3,0.27461]
[1736003664368,0.4236,3642.6,3642.1,0.4448]
[1736003664564,0.70921,3642.5,3642.4,0.2746]
[1736003664764,0.4346,3642.5,3642.1,0.4448]
[1736003665170,0.2746,3642.5,3642.4,0.27461]
[1736003665870,0.4236,3642.6,3642.2,0.4297]
[1736003666264,0.27461,3642.4,3642.3,0.27461]
[1736003666568,0.27461,3642.4,3642.2,0.4297]
[1736003666569,0.2746,3642.5,3642.4,0.2746]
[1736003667267,0.2746,3642.5,3642.3,0.27461]
[1736003667466,0.2746,3642.5,3642.4,0.27461]
[1736003668262,0.27461,3642.4,3642.3,0.27461]
[1736003670166,0.4236,3642.6,3642.2,0.4297]
[1736003670372,0.27461,3642.4,3642.3,0.27461]
[1736003670960,0.4236,3642.6,3642.2,0.4297]
[1736003670961,0.27462,3642.3,3642.2,0.4297]
[1736003671667,0.4054,3642.5,3642.1,0.4448]
[1736003671868,0.4054,3642.5,3641.9,3.2078]
[1736003671869,0.27464,3642.0,3641.9,3.48244]
[1736003672059,0.27464,3642.0,3641.9,3.2078]
[1736003672460,0.27464,3642.0,3641.9,3.48245]
[1736003673373,0.27464,3642.0,3641.9,3.48244]
[1736003674075,0.4087,3642.3,3641.9,3.2078]
[1736003674370,0.27464,3642.1,3642.0,0.27464]
[1736003674568,0.27464,3642.1,3642.0,0.67994]
[1736003674766,0.27464,3642.1,3642.0,1.08634]
[1736003675069,0.27464,3642.0,3641.6,0.27467]
[1736003675272,0.27465,3641.8,3641.7,0.99541883]
[1736003676470,0.27465,3641.8,3641.7,1.27007883]
[1736003677082,0.27465,3641.8,3641.7,0.99541883]
[1736003677574,0.27465,3641.8,3641.7,1.27007883]
[1736003678471,0.27465,3641.8,3641.7,0.99541883]
[1736003679973,0.27465,3641.8,3641.7,1.27007883]
[1736003680871,0.27465,3641.9,3641.7,1.27006883]
[1736003681672,0.27465,3641.9,3641.8,0.27465]
[1736003681871,0.27465,3641.9,3641.7,1.27007883]
[1736003682072,0.27465,3641.8,3641.7,1.27007883]
[1736003682272,0.27465,3641.9,3641.8,0.27465]
[1736003683274,0.27465,3641.9,3641.7,0.99541883]
[1736003683275,0.27465,3641.9,3641.7,1.27007883]
[1736003684581,0.27464,3642.0,3641.9,0.27464]
[1736003684778,0.27464,3642.0,3641.9,1.27005883]
[1736003685576,3.23073271,3642.1,3641.9,0.99541883]
[1736003685780,3.50537271,3642.1,3642.0,0.67904]
[1736003686677,3.50537271,3642.1,3642.0,0.4044]
[1736003686874,0.27464,3642.0,3641.9,0.99541883]
[1736003688672,0.68662,3641.9,3641.3,6.47812067]
[1736003688872,0.27468,3641.4,3641.3,6.47812067]
[1736003689074,0.27468,3641.4,3641.3,7.4735395]
[1736003689278,0.70548,3641.4,3641.3,7.4735395]
[1736003689480,0.70548,3641.4,3641.3,0.99541883]
[1736003690179,0.70548,3641.4,3641.1,6.75282067]
[1736003690370,0.2747,3641.2,3641.1,6.75282067]
[1736003690971,0.2747,3641.2,3641.1,0.2747]
[1736003691575,0.27471,3641.1,3641.0,0.27471]
[1736003691877,0.2747,3641.3,3641.2,0.2747]
[1736003692084,0.2747,3641.3,3641.2,2.4815514]
[1736003692386,0.2747,3641.3,3641.2,2.2068514]
[1736003692581,0.27469,3641.4,3641.2,2.2068514]
[1736003692883,0.27469,3641.3,3641.2,2.4815514]
[1736003693776,0.27469,3641.3,3641.2,2.2068514]
[1736003695886,0.27469,3641.3,3641.2,2.4815514]
[1736003697179,0.27469,3641.3,3641.2,2.2068514]
[1736003698485,0.27469,3641.3,3641.2,2.4815514]
[1736003699589,4.04493271,3641.8,3641.2,2.2068514]
[1736003699776,0.27469,3641.3,3641.2,2.2068514]
[1736003699980,0.27469,3641.3,3641.2,2.4815514]
[1736003701289,0.27471,3641.1,3640.9,5.4146514]
[1736003701488,0.27471,3641.1,3641.0,0.27471]
[1736003701786,0.6867,3641.5,3640.8,6.47812067]
[1736003701980,0.27472,3640.9,3640.8,6.47812067]
[1736003702686,0.27474,3640.6,3640.5,0.27475]
[1736003702887,0.4101,3641.0,3640.4,9.68592067]
[1736003702888,0.27473,3640.8,3640.7,0.27473]
[1736003704489,0.27474,3640.7,3640.6,0.27474]
[1736003704889,0.27475,3640.6,3640.5,0.27475]
[1736003705089,0.27474,3640.7,3640.5,0.27475]
[1736003705391,0.4101,3641.0,3640.5,0.70175]
[1736003705392,0.27474,3640.6,3640.5,0.70175]
[1736003705582,0.27474,3640.7,3640.6,0.27474]
[1736003705884,3.2078,3641.1,3640.6,2.2068514]
[1736003706089,3.50543271,3641.2,3641.1,0.27471]
[1736003706291,3.23073271,3641.2,3641.1,0.27471]
[1736003706589,3.23073271,3641.2,3641.1,1.15841]
[1736003706790,0.27469,3641.3,3641.2,0.2747]
[1736003707178,0.2747,3641.3,3641.1,1.1584]
[1736003707892,0.2747,3641.2,3641.1,1.1584]
[1736003708892,0.8559,3641.5,3641.1,0.8837]
[1736003709189,0.8559,3641.5,3641.2,0.2747]
[1736003709190,0.27469,3641.3,3641.2,0.2747]
[1736003709380,0.27469,3641.4,3641.3,0.27469]
[1736003710886,0.27468,3641.5,3641.2,0.2747]
[1736003711091,0.27468,3641.5,3641.4,0.27468]
[1736003711391,6.71320271,3641.6,3641.5,0.27468]
[1736003711993,3.48247,3641.6,3641.5,0.27468]
[1736003712593,3.2078,3641.6,3641.5,0.27468]
[1736003712891,3.48247,3641.6,3641.5,0.27468]
[1736003713489,0.27467,3641.6,3641.5,0.27468]
[1736003714085,3.67573271,3641.9,3641.3,2.6128514]
[1736003714292,0.27467,3641.7,3641.6,0.27466]
[1736003714892,0.27467,3641.6,3641.5,0.27467]
[1736003715489,3.67573271,3641.9,3641.3,2.6128514]
[1736003715695,0.27466,3641.7,3641.6,0.27466]
[1736003715892,0.27467,3641.6,3641.5,0.27467]
[1736003716686,3.67573271,3641.9,3641.3,2.6128514]
[1736003716899,0.27466,3641.8,3641.7,0.27466]
[1736003717494,3.50538271,3641.9,3641.8,0.27465]
[1736003719391,3.91742958,3641.9,3641.8,0.27465]
[1736003719587,3.64277958,3641.9,3641.6,2.2068514]
[1736003719993,3.91742958,3641.9,3641.8,0.27465]
[1736003720898,3.50538271,3641.9,3641.8,0.27465]
[1736003722304,3.91742958,3641.9,3641.8,0.27465]
[1736003723007,3.64277958,3641.9,3641.8,0.27465]
[1736003725104,0.27462,3642.3,3642.2,0.27462]
[1736003728408,0.27461,3642.4,3642.3,0.27461]
[1736003728811,3.48241,3642.5,3642.1,0.27463]
[1736003729003,3.23073271,3642.6,3642.3,2.2068514]
[1736003729209,3.23073271,3642.6,3642.5,0.2746]
[1736003730318,3.65963271,3642.9,3642.3,2.2068514]
[1736003730614,3.93420271,3642.9,3642.7,0.27458]
[1736003731008,3.65963271,3642.9,3642.7,0.27458]
[1736003731216,0.27458,3642.8,3642.7,0.27458]
[1736003733317,0.70347,3642.9,3642.7,0.27458]
[1736003733510,0.27457,3642.9,3642.5,0.2746]
[1736003733812,0.27457,3642.9,3642.7,0.27458]
[1736003734014,0.27457,3642.9,3642.5,0.4439]
[1736003734215,0.27457,3642.9,3642.7,0.27458]
[1736003734912,0.27458,3642.8,3642.7,0.27458]
[1736003735114,6.88123271,3643.1,3642.6,2.2068514]
[1736003735309,0.27457,3643.0,3642.9,0.27457]
[1736003735913,3.2078,3643.1,3642.6,2.2068514]
[1736003736108,3.48236,3643.1,3643.0,0.27456]
[1736003736313,3.48236,3643.1,3642.9,0.27457]
[1736003736521,3.48236,3643.1,3643.0,0.4146]
[1736003736815,3.48236,3643.1,3643.0,0.68916]
[1736003737616,3.48236,3643.1,3643.0,0.4146]
[1736003738223,3.48236,3643.1,3643.0,1.40953591]
[1736003739017,4.47729591,3643.1,3643.0,0.4146]
[1736003739315,0.27457,3642.9,3642.8,0.99493591]
[1736003740417,0.27457,3643.0,3642.9,0.27457]
[1736003740615,0.27457,3642.9,3642.8,0.27457]
[1736003741717,0.27457,3643.0,3642.9,0.27457]
[1736003742217,0.27457,3642.9,3642.8,0.27457]
[1736003742423,0.27458,3642.8,3642.7,0.27458]
[1736003744520,0.4181,3643.0,3642.6,0.4435]
[1736003744819,0.4181,3643.0,3642.8,0.27457]
[1736003744820,0.27457,3642.9,3642.8,0.27457]
[1736003746214,0.4181,3643.0,3642.7,0.4087]
[1736003746415,0.27457,3642.9,3642.8,0.27458]
[1736003748519,3.2078,3643.1,3642.7,0.4087]
[1736003749323,0.27458,3642.8,3642.7,0.4087]
[1736003749524,0.27458,3642.8,3642.7,0.68329]
[1736003750416,0.27458,3642.8,3642.7,0.4087]
[1736003751919,0.8418,3642.9,3642.6,0.4435]
[1736003752122,0.27458,3642.8,3642.7,0.429]
[1736003752924,0.27458,3642.8,3642.7,0.70359]
[1736003753124,0.27458,3642.8,3642.7,0.429]
[1736003754829,0.27458,3642.8,3642.7,0.70359]
[1736003755126,0.27458,3642.8,3642.7,0.429]
[1736003755327,0.27458,3642.8,3642.7,0.70359]
[1736003755526,3.2078,3643.1,3642.7,0.429]
[1736003755923,0.27456,3643.0,3642.8,0.27458]
[1736003756122,0.27458,3642.9,3642.8,0.27458]
[1736003758924,5.36048109,3643.1,3642.7,0.70358]
[1736003758925,0.27458,3642.8,3642.7,0.70358]
[1736003760328,5.77228109,3643.1,3642.7,0.429]
[1736003760527,0.27458,3642.9,3642.8,0.27457]
[1736003760727,0.27458,3642.8,3642.7,0.70358]
[1736003761328,0.27458,3642.8,3642.7,0.70359]
[1736003761625,0.27457,3642.9,3642.8,0.27457]
[1736003761827,5.63504109,3643.1,3643.0,0.27456]
[1736003762023,3.48236,3643.1,3643.0,0.27456]
[1736003762229,3.2078,3643.1,3643.0,1.26944166]
[1736003763727,2.42956851,3643.2,3643.1,0.27456]
[1736003763930,2.42956851,3643.2,3643.1,1.12706]
[1736003764129,2.15501851,3643.2,3643.1,1.57206]
[1736003764331,2.42956851,3643.2,3643.1,1.57206]
[1736003764731,2.42956851,3643.2,3643.1,1.2975]
[1736003765328,0.27456,3643.1,3643.0,0.99488166]
[1736003765636,0.70856,3643.1,3643.0,0.99488166]
[1736003766425,2.86357851,3643.1,3643.0,1.26944166]
[1736003767029,2.86357851,3643.1,3643.0,0.99488166]
[1736003767430,0.27459,3642.7,3642.6,5.60878836]
[1736003767634,0.27459,3642.7,3642.6,4.29368836]
[1736003767935,0.27459,3642.7,3642.6,5.28857002]
[1736003768635,0.68579,3642.7,3642.6,5.28857002]
[1736003769334,0.68579,3642.7,3642.6,0.99488166]
[1736003769335,1.09772654,3642.7,3642.6,0.99488166]
[1736003770736,0.68652654,3642.7,3642.6,0.99488166]
[1736003772431,0.41193654,3642.7,3642.6,1.26947166]
[1736003772833,3.63892215,3642.8,3642.7,0.27459]
[1736003773028,3.63892215,3642.8,3642.7,0.70509]
[1736003773233,3.23914578,3642.8,3642.7,0.4305]
[1736003773532,3.23914578,3642.8,3642.7,0.70509]
[1736003773728,0.65930578,3642.8,3642.7,1.69997166]
[1736003773931,2.40368215,3643.0,3642.9,0.27457]
[1736003774132,2.40368215,3643.0,3642.9,6.53313332]
[1736003774736,2.15919721,3643.0,3642.9,6.25856332]
[1736003774937,2.15919721,3643.0,3642.9,6.53313332]
[1736003776235,2.15919721,3643.0,3642.9,6.74696242]
[1736003776439,0.1,3643.1,3643.0,0.27456]
[1736003776935,0.1,3643.1,3643.0,1.13806]
[1736003777939,0.1,3643.1,3643.0,12.31618213]
[1736003778140,0.1,3643.1,3643.0,11.86928213]
[1736003779438,0.1,3643.1,3643.0,10.99241027]
[1736003780943,0.1,3643.1,3643.0,4.53362012]
[1736003781636,2.15919721,3643.4,3643.3,0.27454]
[1736003781841,2.15919721,3643.4,3643.3,2.47813242]
[1736003782542,2.15919721,3643.6,3643.5,0.27452]
[1736003783045,2.58579721,3643.6,3643.3,2.20359242]
[1736003783343,2.15919721,3643.6,3643.5,0.27452]
[1736003784441,2.43371721,3643.6,3643.5,0.27452]
[1736003784641,2.15919721,3643.6,3643.5,0.27452]
[1736003784846,2.15919721,3643.6,3643.5,1.13722]
[1736003785037,2.15919721,3643.8,3643.7,0.27451]
[1736003785544,2.87769721,3643.8,3643.7,0.27451]
[1736003785747,3.30559721,3643.8,3643.6,0.27451]
[1736003786046,0.4355,3643.7,3643.6,0.27451]
[1736003787046,9.29633575,3644.4,3643.8,0.2745]
[1736003787047,2.43369721,3643.9,3643.8,0.2745]
[1736003787238,2.15919721,3643.9,3643.8,0.2745]
[1736003787650,2.15919721,3643.9,3643.8,2.47809242]
[1736003788345,0.8501,3644.0,3643.9,0.27449]
[1736003789440,2.15919721,3644.1,3644.0,0.27449]
[1736003789641,0.27448,3644.2,3644.1,0.27448]
[1736003790842,0.4081,3644.3,3644.1,2.20359242]
[1736003791046,0.4081,3644.3,3644.2,0.27447]
[1736003791244,0.4081,3644.3,3644.2,0.70297]
[1736003791841,0.4081,3644.3,3644.2,1.13537]
[1736003792237,0.4146,3644.4,3644.2,0.8609]
[1736003792443,0.4146,3644.4,3644.3,1.33546]
[1736003792643,0.8353,3644.4,3644.3,1.33546]
[1736003792947,3.2078,3644.5,3644.4,0.27446]
[1736003793147,2.15919721,3644.6,3644.5,0.27445]
[1736003793550,2.15919721,3644.8,3644.7,0.27443]
[1736003793945,2.15919721,3644.8,3644.7,2.47802242]
[1736003794548,2.15919721,3644.8,3644.7,7.47802242]
[1736003794851,5.38444094,3645.4,3645.3,0.27439]
[1736003795048,2.15115755,3645.4,3645.3,3.53898242]
[1736003795447,2.15115755,3645.4,3645.3,6.74678242]
[1736003796854,0.27436,3645.8,3645.5,0.27437]
[1736003797147,0.4462,3646.0,3645.5,0.27437]
[1736003797352,0.71076,3645.7,3645.5,0.27437]
[1736003797551,0.4364,3645.7,3645.6,0.27437]
[1736003798252,0.71076,3645.7,3645.5,0.27437]
[1736003798446,0.4364,3645.7,3645.6,0.27437]
[1736003800553,0.43873856,3645.7,3645.3,3.26459242]
[1736003800750,0.43873856,3645.7,3645.5,0.27437]
[1736003800951,0.71309856,3645.7,3645.4,0.27438]
[1736003801157,0.43873856,3645.7,3645.4,0.27438]
[1736003801355,0.27437,3645.6,3645.4,0.27438]
[1736003802452,0.71309856,3645.7,3645.5,0.27437]
[1736003802655,0.43873856,3645.7,3645.6,2.47796242]
[1736003803554,0.43873856,3645.7,3645.6,2.20359242]
[1736003803753,0.71309856,3645.7,3645.6,2.20359242]
[1736003804353,0.00233856,3645.7,3645.6,5.68576242]
[1736003804564,3.48209,3646.6,3645.6,5.68576242]
[1736003804565,1.2669,3646.5,3645.6,5.68576242]
[1736003804759,0.8474,3646.5,3646.4,2.47790242]
[1736003804956,0.8474,3646.5,3646.4,3.53890242]
[1736003805254,0.4195,3647.2,3646.4,6.47239242]
[1736003805454,0.27425,3647.2,3646.8,0.27428]
[1736003805656,7.49147566,3647.4,3646.7,2.20359242]
[1736003805858,0.27426,3647.1,3646.8,1.33527]
[1736003806160,0.27426,3647.1,3646.9,0.27427]
[1736003806349,0.27426,3647.1,3646.8,1.33527]
[1736003806547,0.27427,3646.9,3646.8,1.07]
[1736003806755,0.69216,3647.0,3646.8,1.34427]
[1736003807058,0.4179,3647.0,3646.8,1.34427]
[1736003807254,3.2078,3647.4,3646.8,1.34427]
[1736003807457,0.27424,3647.3,3647.1,0.27425]
[1736003807659,1.11844,3647.3,3647.0,2.20359242]
[1736003807863,1.11844,3647.3,3647.1,0.27425]
[1736003808159,0.8442,3647.3,3647.0,2.20359242]
[1736003808457,0.27419,3647.9,3647.5,0.27422]
[1736003808764,0.4119,3647.9,3647.3,2.20359242]
[1736003808963,0.27423,3647.5,3647.2,0.27424]
[1736003809554,0.27423,3647.4,3647.1,0.27425]
[1736003809750,0.4428,3647.4,3647.0,2.20359242]
[1736003810159,0.4428,3647.4,3646.7,2.20359242]
[1736003810356,0.4428,3647.4,3647.0,2.20359242]
[1736003810657,0.4428,3647.4,3647.2,0.27424]
[1736003811154,3.2078,3648.4,3647.3,2.20359242]
[1736003811363,3.2078,3648.4,3646.8,1.07]
[1736003811364,0.4474,3647.7,3647.6,0.27422]
[1736003811553,0.4474,3647.7,3647.6,1.34422]
[1736003812368,0.27415,3648.5,3648.2,0.27417]
[1736003812659,1.3196,3648.8,3648.3,2.20359242]
[1736003812858,3.52319242,3648.8,3647.6,1.07]
[1736003813162,0.27418,3648.2,3647.8,0.27419]
[1736003813363,0.4424,3648.1,3647.8,0.27419]
[1736003813662,0.4474,3648.0,3647.9,0.27419]
[1736003814064,0.4474,3648.0,3647.7,2.20359242]
[1736003814258,0.4474,3648.0,3647.9,0.27419]
[1736003816255,4.064,3648.5,3648.4,0.27416]
[1736003816852,0.8562,3648.5,3648.4,0.27416]
[1736003818757,0.27416,3648.4,3648.3,1.069]
[1736003818961,0.8562,3648.5,3648.1,0.27418]
[1736003819157,0.8562,3648.5,3647.0,0.4178]
[1736003819158,0.27422,3647.6,3647.3,0.27423]
[1736003819353,0.8362,3647.5,3647.4,2.47782242]
[1736003822463,0.8362,3647.5,3647.1,2.20359242]
[1736003822669,0.8362,3647.5,3647.2,1.069]
[1736003822966,0.27424,3647.3,3647.2,1.069]
[1736003823168,0.27425,3647.2,3646.9,1.34326]
[1736003823466,0.27426,3647.0,3646.9,1.069]
[1736003823974,0.8362,3647.5,3646.9,1.069]
[1736003824164,0.27426,3647.0,3646.9,1.069]
[1736003824663,0.27426,3647.1,3646.9,1.069]
[1736003824865,0.27426,3647.0,3646.9,1.069]
[1736003825060,3.2078,3647.3,3646.8,3.2078]
[1736003825265,3.6496,3646.9,3646.2,2.20359242]
[1736003825568,0.27429,3646.6,3646.3,0.27431]
[1736003826066,0.4471,3646.7,3646.2,2.20359242]
[1736003826270,0.27431,3646.4,3646.2,2.20359242]
[1736003826465,0.27431,3646.4,3646.2,2.47791242]
[1736003826666,0.4471,3646.7,3645.9,2.20359242]
[1736003826970,3.2078,3646.3,3645.9,2.20359242]
[1736003827165,3.2078,3646.3,3645.4,3.2078]
[1736003827166,0.4418,3646.2,3645.6,6.20359242]
[1736003827371,0.27435,3645.8,3645.6,6.20359242]
[1736003827572,0.4263,3645.7,3645.6,6.47796242]
[1736003828171,0.4418,3646.2,3646.0,0.27433]
[1736003828468,0.4418,3646.2,3645.6,6.20359242]
[1736003828469,1.14243,3646.2,3645.9,2.47793242]
[1736003828671,0.27435,3645.9,3645.6,6.47795242]
[1736003828873,0.8681,3646.2,3645.6,6.20359242]